fUSD/lending_fUSD_20250419
["ID","MTS","AMOUNT","RATE_DAILY","PERIOD"]
[358392601,1745055525922,649.52381527,0.00054794,120]
[358392602,1745055531974,500.0,0.00054794,120]
[358392603,1745055536475,410.59173978,0.00054794,120]
[358392604,1745055540265,310.42375644,0.00054794,120]
[358392605,1745055546615,2191.49,0.00054794,120]
[358392606,1745055546893,517.80481304,0.00054794,120]
[358392607,1745055547387,151.0,0.00054521,30]
[358392608,1745055555824,500.0,0.00054794,120]
[358392609,1745055560768,167.78726506,0.00054794,120]
[358392610,1745055565339,500.0,0.00054794,120]
[358392611,1745055572547,500.0,0.00054794,120]
[358392612,1745055576643,189.89108851,0.00054794,120]
[358392613,1745055577463,500.0,0.00054794,120]
[358392614,1745055577962,1595.48,0.00054794,120]
[358392615,1745055579620,500.0,0.00054794,120]
[358392616,1745055581338,217.22965818,0.00054794,120]
[358392617,1745055586296,154.09451252,0.00054794,120]
[358392618,1745055597497,500.0,0.00054794,120]
[358392619,1745055599238,500.0,0.00054794,120]
[358392620,1745055599599,500.0,0.00054794,120]
[358392621,1745055616951,2406.95,0.00046575,120]
[358392622,1745055617008,551.92,0.00054794,120]
[358392623,1745055617174,2406.95,0.00054794,120]
[358392624,1745055619595,500.0,0.00054794,120]
[358392625,1745055622600,500.0,0.00054794,120]
[358392626,1745055624107,272.07043203,0.00054794,120]
[358392627,1745055631754,24042.3,0.0005,60]
[358392628,1745055632085,24042.3,0.00054,60]
[358392629,1745055643091,500.0,0.00054794,120]
[358392630,1745055644749,500.0,0.00054794,120]
[358392631,1745055646122,500.0,0.00054794,120]
[358392632,1745055646269,484.40553203,0.00054794,120]
[358392633,1745055649361,644.86401285,0.00054794,120]
[358392634,1745055650194,909.07,0.00054794,120]
[358392635,1745055656850,612.99191882,0.00054794,120]
[358392636,1745055657380,500.0,0.00054794,120]
[358392637,1745055658643,426.70967191,0.00054794,120]
[358392638,1745055662186,500.0,0.00054794,120]
[358392639,1745055663764,500.0,0.00054794,120]
[358392640,1745055664734,277.12070766,0.00054794,120]
[358392641,1745055674494,500.0,0.00054794,120]
[358392642,1745055678646,38146.66,0.00054794,120]
[358392643,1745055679111,443.84946566,0.00054794,120]
[358392644,1745055687335,200.0,0.000547,99]
[358392645,1745055689082,621.52095064,0.00054794,120]
[358392646,1745055691593,200.0,0.0005,81]
[358392647,1745055691986,200.0,0.00051,85]
[358392648,1745055692566,200.0,0.00052,89]
[358392649,1745055693117,200.0,0.00053,92]
[358392650,1745055693432,500.0,0.00054794,120]
[358392651,1745055693690,200.0,0.00054,96]
[358392652,1745055695951,500.0,0.00054794,120]
[358392653,1745055705063,513.97,0.00054794,120]
[358392654,1745055706004,500.0,0.00054794,120]
[358392655,1745055710927,154.0,0.00054795,120]
[358392656,1745055711103,500.0,0.00054794,120]
[358392657,1745055715401,600.0,0.00054794,120]
[358392658,1745055715894,500.0,0.00054794,120]
[358392659,1745055716398,772.64,0.00054794,120]
[358392660,1745055723733,500.0,0.00054794,120]
[358392661,1745055723899,198.79785521,0.00054794,120]
[358392662,1745055726509,500.0,0.00054794,120]
[358392663,1745055729448,178.88,0.00054794,120]
[358392664,1745055729981,500.0,0.00054794,120]
[358392665,1745055731009,500.0,0.00054794,120]
[358392666,1745055731056,1023.28,0.00054794,120]
[358392667,1745055731265,500.0,0.00054794,120]
[358392668,1745055741036,800.0,0.00051155,60]
[358392669,1745055744157,2900.0,0.00052051,60]
[358392670,1745055746525,500.0,0.00053493,60]
[358392671,1745055748035,225.03678085,0.00054794,120]
[358392672,1745055749721,500.0,0.00048571,30]
[358392673,1745055750607,500.0,0.00049333,30]
[358392674,1745055751089,592.51556429,0.00054794,120]
[358392675,1745055751572,500.0,0.00051849,60]
[358392676,1745055751885,500.0,0.00051334,60]
[358392677,1745055751914,500.0,0.00052653,60]
[358392678,1745055752707,500.0,0.00049018,30]
[358392679,1745055752946,610.85,0.00054794,120]
[358392680,1745055753005,500.0,0.00049212,30]
[358392681,1745055753421,500.0,0.00053784,60]
[358392682,1745055753519,500.0,0.00052374,60]
[358392683,1745055754833,558.47505905,0.00054794,120]
[358392684,1745055756608,500.0,0.00054794,120]
[358392685,1745055762459,215.34731293,0.00054794,120]
[358392686,1745055765113,500.0,0.00054794,120]
[358392687,1745055765608,500.0,0.00054794,120]
[358392688,1745055766538,500.0,0.00054794,120]
[358392689,1745055770647,500.0,0.00054794,120]
[358392690,1745055772527,500.0,0.00054794,120]
[358392691,1745055776621,500.0,0.00054794,120]
[358392692,1745055778934,500.0,0.00054794,120]
[358392693,1745055779400,500.0,0.00054794,120]
[358392694,1745055791741,352.46190146,0.00054794,120]
[358392695,1745055796353,318.77853601,0.00054794,120]
[358392696,1745055799960,500.0,0.00054794,120]
[358392697,1745055801195,2100.18,0.00054794,120]
[358392698,1745055801908,500.0,0.00054794,120]
[358392699,1745055804713,502.91887119,0.00054794,120]
[358392700,1745055809669,1529.0,0.00054794,120]
[358392701,1745055810322,209.12592165,0.00054794,120]
[358392702,1745055814296,633.269,0.00043888,30]
[358392703,1745055817437,500.0,0.00054794,120]
[358392704,1745055823816,1069.0,0.00052055,30]
[358392705,1745055827064,19233.84,0.000494,60]
[358392706,1745055827451,19233.84,0.00053,60]
[358392707,1745055828429,500.0,0.00054794,120]
[358392708,1745055828461,1069.0,0.00049452,30]
[358392709,1745055835063,1069.0,0.00048203,30]
[358392710,1745055838908,1069.0,0.00048203,30]
[358392711,1745055843078,282.3651985,0.00054794,120]
[358392712,1745055844819,500.0,0.00054794,120]
[358392713,1745055845328,500.0,0.00054794,120]
[358392714,1745055845988,500.0,0.00054794,120]
[358392715,1745055853837,500.0,0.00054794,120]
[358392716,1745055863009,181.34268176,0.00054794,120]
[358392717,1745055864329,2206.37,0.00046575,120]
[358392718,1745055864358,301.86967675,0.00054521,30]
[358392719,1745055864692,2206.37,0.00054794,120]
[358392720,1745055865464,524.50690402,0.00054794,120]
[358392721,1745055865866,500.0,0.00054794,120]
[358392722,1745055871388,528.92,0.00054794,120]
[358392723,1745055876385,500.0,0.00054794,120]
[358392724,1745055893886,415.79071398,0.00054794,120]
[358392725,1745055898326,3588.54,0.00054795,30]
[358392726,1745055901282,500.0,0.00054794,120]
[358392727,1745055907811,150.0,0.00054794,30]
[358392728,1745055908818,150.0,0.00054794,30]
[358392729,1745055908849,500.0,0.00054495,120]
[358392730,1745055908991,150.0,0.00054794,30]
[358392731,1745055909030,500.0,0.00054495,120]
[358392732,1745055909170,150.0,0.00054794,30]
[358392733,1745055909203,500.0,0.00054495,120]
[358392734,1745055909340,150.0,0.00054794,30]
[358392735,1745055909375,500.0,0.00054495,120]
[358392736,1745055909526,392.22712932,0.00054495,120]
[358392737,1745055909559,165.79271395,0.00054794,30]
[358392738,1745055910374,500.0,0.00054495,120]
[358392739,1745055910545,500.0,0.00054495,120]
[358392740,1745055910742,503.85085957,0.00054495,120]
[358392741,1745055911305,150.0,0.00054794,30]
[358392742,1745055912176,150.0,0.00054495,120]
[358392743,1745055912372,150.0,0.00054495,120]
[358392744,1745055913006,150.0,0.00054794,30]
[358392745,1745055914226,500.0,0.00054495,120]
[358392746,1745055914390,500.0,0.00054495,120]
[358392747,1745055914551,500.0,0.00054495,120]
[358392748,1745055914628,150.0,0.00054794,30]
[358392749,1745055914722,500.0,0.00054495,120]
[358392750,1745055914794,150.0,0.00054794,30]
[358392751,1745055914903,500.0,0.00054495,120]
[358392752,1745055914984,150.0,0.00054794,30]
[358392753,1745055915083,500.0,0.00054495,120]
[358392754,1745055915279,500.0,0.00054495,120]
[358392755,1745055915358,217.8110894,0.00054794,30]
[358392756,1745055915641,500.0,0.00054495,120]
[358392757,1745055915839,500.0,0.00054495,120]
[358392758,1745055915962,276.04146334,0.00054794,30]
[358392759,1745055916009,500.0,0.00054495,120]
[358392760,1745055916184,604.55744387,0.00054495,120]
[358392761,1745055916553,151.2149049,0.00054794,30]
[358392762,1745055916862,500.0,0.00054495,120]
[358392763,1745055917094,500.0,0.00054495,120]
[358392764,1745055917181,150.0,0.00054794,30]
[358392765,1745055917278,500.0,0.00054495,120]
[358392766,1745055917340,197.1504834,0.00054794,30]
[358392767,1745055917449,500.0,0.00054495,120]
[358392768,1745055917610,500.0,0.00054495,120]
[358392769,1745055917776,500.0,0.00054495,120]
[358392770,1745055918029,500.0,0.00054495,120]
[358392771,1745055918308,500.0,0.00054495,120]
[358392772,1745055918481,500.0,0.00054495,120]
[358392773,1745055918643,500.0,0.00054495,120]
[358392774,1745055918842,150.0,0.00054794,30]
[358392775,1745055919002,150.0,0.00054794,30]
[358392776,1745055919035,517.04662071,0.00054495,120]
[358392777,1745055919217,150.0,0.00054794,30]
[358392778,1745055919402,150.0,0.00054794,30]
[358392779,1745055919585,232.670595,0.00054794,30]
[358392780,1745055919664,151.63593554,0.00054495,120]
[358392781,1745055920285,500.0,0.00054794,30]
[358392782,1745055920456,500.0,0.00054794,30]
[358392783,1745055920648,500.0,0.00054794,30]
[358392784,1745055920817,500.0,0.00054794,30]
[358392785,1745055920968,174.44273311,0.00054794,30]
[358392786,1745055921820,416.0,0.00054794,30]
[358392787,1745055922006,416.0,0.00054794,30]
[358392788,1745055922180,416.0,0.00054794,30]
[358392789,1745055922338,416.0,0.00054794,30]
[358392790,1745055922519,416.0,0.00054794,30]
[358392791,1745055922887,416.0,0.00054794,30]
[358392792,1745055923071,416.0,0.00054794,30]
[358392793,1745055923260,152.78624782,0.00054495,120]
[358392794,1745055923299,416.0,0.00054794,30]
[358392795,1745055923505,416.0,0.00054794,30]
[358392796,1745055923712,416.0,0.00054794,30]
[358392797,1745055923880,416.0,0.00054794,30]
[358392798,1745055923912,150.0,0.00054495,120]
[358392799,1745055924234,150.0,0.00054495,120]
[358392800,1745055924266,416.0,0.00054794,30]
[358392801,1745055924300,150.0,0.00054495,120]
[358392802,1745055924377,150.0,0.00054495,120]
[358392803,1745055924744,150.0,0.00054495,120]
[358392804,1745055924841,416.0,0.00054794,30]
[358392805,1745055925082,416.0,0.00054794,30]
[358392806,1745055925243,416.0,0.00054794,30]
[358392807,1745055925711,416.0,0.00054794,30]
[358392808,1745055925745,416.0,0.00054794,30]
[358392809,1745055925775,182.61030753,0.00054495,120]
[358392810,1745055925833,416.0,0.00054794,30]
[358392811,1745055925990,416.0,0.00054794,30]
[358392812,1745055926440,416.0,0.00054794,30]
[358392813,1745055926503,150.0,0.00054495,120]
[358392814,1745055926582,150.0,0.000547,120]
[358392815,1745055926816,416.0,0.00054794,30]
[358392816,1745055926862,150.0,0.00054495,120]
[358392817,1745055927009,416.0,0.00054794,30]
[358392818,1745055927040,150.0,0.00054495,120]
[358392819,1745055927178,416.0,0.00054794,30]
[358392820,1745055927211,153.38007796,0.00054495,120]
[358392821,1745055927336,433.35390967,0.00054794,30]
[358392822,1745055927921,500.0,0.00054495,120]
[358392823,1745055928277,500.0,0.00054495,120]
[358392824,1745055928440,500.0,0.00054495,120]
[358392825,1745055928594,500.0,0.00054495,120]
[358392826,1745055928774,408.34826618,0.00054495,120]
[358392827,1745055929908,500.0,0.00054794,30]
[358392828,1745055930071,500.0,0.00054794,30]
[358392829,1745055930418,500.0,0.00054794,30]
[358392830,1745055930672,500.0,0.00054794,30]
[358392831,1745055931784,500.0,0.00054794,30]
[358392832,1745055932571,500.0,0.00054794,30]
[358392833,1745055932733,500.0,0.00054794,30]
[358392834,1745055932955,500.0,0.00054794,30]
[358392835,1745055933133,477.95239802,0.00054794,30]
[358392836,1745055934183,36557.22,0.00054794,120]
[358392837,1745055934593,642.0,0.00054794,30]
[358392838,1745055935133,642.0,0.00054794,30]
[358392839,1745055935292,642.0,0.00054794,30]
[358392840,1745055935456,642.0,0.00054794,30]
[358392841,1745055935650,642.0,0.00054794,30]
[358392842,1745055936003,642.0,0.00054794,30]
[358392843,1745055936202,642.0,0.00054794,30]
[358392844,1745055936582,642.0,0.00054794,30]
[358392845,1745055936743,642.0,0.00054794,30]
[358392846,1745055936934,642.0,0.00054794,30]
[358392847,1745055937128,642.0,0.00054794,30]
[358392848,1745055937326,642.0,0.00054794,30]
[358392849,1745055937514,642.0,0.00054794,30]
[358392850,1745055937790,642.0,0.00054794,30]
[358392851,1745055937842,642.0,0.00054794,30]
[358392852,1745055938032,642.0,0.00054794,30]
[358392853,1745055938201,642.0,0.00054794,30]
[358392854,1745055938360,642.0,0.00054794,30]
[358392855,1745055938526,642.0,0.00054794,30]
[358392856,1745055938704,642.0,0.00054794,30]
[358392857,1745055940147,500.0,0.00054794,30]
[358392858,1745055940562,500.0,0.00054794,30]
[358392859,1745055940687,500.0,0.00054794,30]
[358392860,1745055940852,500.0,0.00054794,30]
[358392861,1745055941038,500.0,0.00054794,30]
[358392862,1745055941095,500.0,0.00054495,120]
[358392863,1745055941404,500.0,0.00054794,30]
[358392864,1745055941463,500.0,0.00054495,120]
[358392865,1745055941579,500.0,0.00054794,30]
[358392866,1745055941631,500.0,0.00054495,120]
[358392867,1745055941755,500.0,0.00054794,30]
[358392868,1745055941819,500.0,0.00054495,120]
[358392869,1745055941913,500.0,0.00054794,30]
[358392870,1745055942074,500.0,0.00054495,120]
[358392871,1745055942105,500.0,0.00054794,30]
[358392872,1745055942232,500.0,0.00054495,120]
[358392873,1745055942298,500.0,0.00054794,30]
[358392874,1745055942438,247.57001895,0.00054495,120]
[358392875,1745055942788,500.0,0.00054794,30]
[358392876,1745055942958,500.0,0.00054794,30]
[358392877,1745055943245,500.0,0.00054495,120]
[358392878,1745055943621,456.57289263,0.00054794,30]
[358392879,1745055944897,2088.0,0.00054495,120]
[358392880,1745055945110,2088.0,0.00054495,120]
[358392881,1745055945287,2088.0,0.00054495,120]
[358392882,1745055945460,2088.0,0.00054495,120]
[358392883,1745055945626,2088.0,0.00054495,120]
[358392884,1745055945800,2088.0,0.00054495,120]
[358392885,1745055946138,2088.0,0.00054495,120]
[358392886,1745055946336,2088.0,0.00054495,120]
[358392887,1745055946499,2088.0,0.00054495,120]
[358392888,1745055946659,2088.0,0.00054495,120]
[358392889,1745055946841,2088.0,0.00054495,120]
[358392890,1745055947001,2088.0,0.00054495,120]
[358392891,1745055947175,2088.0,0.00054495,120]
[358392892,1745055947428,2088.0,0.00054495,120]
[358392893,1745055947602,2088.0,0.00054495,120]
[358392894,1745055947770,2088.0,0.00054495,120]
[358392895,1745055947927,2088.0,0.00054495,120]
[358392896,1745055948022,10007.84769479,0.00054,120]
[358392897,1745055948086,2088.0,0.00054495,120]
[358392898,1745055948282,2088.0,0.00054495,120]
[358392899,1745055948785,2088.0,0.00054495,120]
[358392900,1745055948955,2088.0,0.00054495,120]
[358392901,1745055949145,2088.0,0.00054495,120]
[358392902,1745055949190,500.0,0.00054794,30]
[358392903,1745055949309,2088.0,0.00054495,120]
[358392904,1745055949361,500.0,0.00054794,30]
[358392905,1745055949525,500.0,0.00054794,30]
[358392906,1745055949687,500.0,0.00054794,30]
[358392907,1745055949902,500.0,0.00054794,30]
[358392908,1745055953891,280.39513963,0.00054794,120]
[358392909,1745055956092,-3.22839253,0.00019,2]
[358392910,1745055956120,-1395.69890189,0.00019086,2]
[358392911,1745055956143,-246.99332461,0.00019258,2]
[358392912,1745055956170,-300.0,0.00019357,2]
[358392913,1745055956194,-300.0,0.00019357,2]
[358392914,1745055956217,-12393.61,0.00019358,2]
[358392915,1745055956240,-246.9933246,0.00019407,2]
[358392916,1745055956263,-91703.79440249,0.00019507,2]
[358392917,1745055956284,-801.31,0.00019689,2]
[358392918,1745055956307,-392.9098206,0.000197,2]
[358392919,1745055956328,-150.0,0.00019781,2]
[358392920,1745055956349,-2161.0,0.00019799,2]
[358392921,1745055956370,-10974.8117,0.000198,2]
[358392922,1745055956392,-1000.0,0.000198,2]
[358392923,1745055956418,-723.69524903,0.000198,2]
[358392924,1745055956442,-3736.90390087,0.000198,2]
[358392925,1745055956630,-362.76900687,0.000198,2]
[358392926,1745055956653,-197.57799734,0.000198,2]
[358392927,1745055956675,-2589.4341182,0.000198,2]
[358392928,1745055956698,-1000.0,0.00019813,2]
[358392929,1745055956734,-200.0,0.00019813,2]
[358392930,1745055956759,-150.99,0.0001985,2]
[358392931,1745055956783,-362.76900685,0.0001985,2]
[358392932,1745055956809,-4152.0,0.00019863,2]
[358392933,1745055956834,-156.500969,0.00019873,2]
[358392934,1745055956858,-184.21219033,0.00019873,2]
[358392935,1745055956882,-589.62336358,0.00019873,2]
[358392936,1745055956907,-500.0,0.00019873,2]
[358392937,1745055956931,-503.875321,0.00019873,2]
[358392938,1745055956955,-42681.04419808,0.00019876,2]
[358392939,1745055956980,-351.61217468,0.0001989,2]
[358392940,1745055957005,-351.61217468,0.0001989,2]
[358392941,1745055957032,-1968072.40398136,0.000199,2]
[358392942,1745055961536,740.45,0.00054794,120]
[358392943,1745055968391,1000.0,0.00054794,35]
[358392944,1745055969769,155.0,0.00054795,30]
[358392945,1745055970385,155.0,0.00054795,30]
[358392946,1745055971343,155.0,0.00054795,30]
[358392947,1745055972552,155.0,0.00054795,30]
[358392948,1745055973210,246.20346882,0.00054795,30]
[358392949,1745055974134,500.0,0.00054794,120]
[358392950,1745055975550,500.0,0.00054794,120]
[358392951,1745055978943,500.0,0.00054794,120]
[358392952,1745055979569,500.0,0.00054794,120]
[358392953,1745055985747,235.0,0.000452,30]
[358392954,1745055995030,621.8,0.0005444,120]
[358392955,1745056003514,500.0,0.00054794,120]
[358392956,1745056007918,500.0,0.00054794,120]
[358392957,1745056013479,358.22576249,0.00054794,120]
[358392958,1745056014560,500.0,0.00054794,120]
[358392959,1745056015802,539.26344758,0.00054794,120]
[358392960,1745056020234,2012.67,0.00054794,120]
[358392961,1745056025421,15387.07,0.000494,60]
[358392962,1745056025711,15387.07,0.0005,60]
[358392963,1745056026036,15387.07,0.00051,60]
[358392964,1745056026125,-373.2643296,0.000197,2]
[358392965,1745056026147,-270.03901724,0.00019899,2]
[358392966,1745056026901,500.0,0.00054794,120]
[358392967,1745056033379,7112.88475743,0.00054,120]
[358392968,1745056035574,500.0,0.00053386,60]
[358392969,1745056035909,500.0,0.00054634,60]
[358392970,1745056036706,1465.3,0.00054794,120]
[358392971,1745056041702,800.0,0.00050732,60]
[358392972,1745056043087,2800.0,0.00051241,60]
[358392973,1745056046562,500.0,0.00052382,60]
[358392974,1745056047005,500.0,0.00054495,60]
[358392975,1745056047133,500.0,0.00050992,60]
[358392976,1745056050763,500.0,0.00048904,30]
[358392977,1745056051024,500.0,0.00050941,60]
[358392978,1745056051268,500.0,0.00053964,60]
[358392979,1745056053093,500.0,0.00051878,60]
[358392980,1745056053406,500.0,0.00053572,60]
[358392981,1745056053660,500.0,0.00054794,120]
[358392982,1745056053730,500.0,0.00053933,60]
[358392983,1745056054245,500.0,0.00054794,120]
[358392984,1745056060427,500.0,0.00054794,120]
[358392985,1745056062918,518.33075152,0.00054794,120]
[358392986,1745056069498,500.0,0.00054794,120]
[358392987,1745056072295,534.56747256,0.00054794,120]
[358392988,1745056074509,500.0,0.00054794,120]
[358392989,1745056076802,163.37426156,0.00054794,120]
[358392990,1745056089810,500.0,0.00054794,120]
[358392991,1745056093974,506.88,0.00054794,120]
[358392992,1745056108431,2022.51,0.00046575,120]
[358392993,1745056108652,2022.51,0.00054794,120]
[358392994,1745056120640,500.0,0.00054794,120]
[358392995,1745056126926,500.0,0.00054794,120]
[358392996,1745056131068,500.0,0.00054794,120]
[358392997,1745056144213,500.0,0.00054794,120]
[358392998,1745056145379,211.0,0.0005479,30]
[358392999,1745056145715,211.0,0.0005317,30]
[358393000,1745056146025,211.0,0.0005155,30]
[358393001,1745056146347,211.0,0.0004993,30]
[358393002,1745056146666,211.0,0.0004831,30]
[358393003,1745056147223,211.0,0.0004669,30]
[358393004,1745056147445,211.0,0.0004507,30]
[358393005,1745056148328,211.0,0.0004345,30]
[358393006,1745056148635,211.0,0.0004183,30]
[358393007,1745056148963,211.0,0.000402,30]
[358393008,1745056149281,211.0,0.0003858,30]
[358393009,1745056149580,211.0,0.0003696,30]
[358393010,1745056149892,211.0,0.0003534,30]
[358393011,1745056150203,211.0,0.0003372,30]
[358393012,1745056150520,211.0,0.000321,30]
[358393013,1745056150822,211.0,0.0003048,30]
[358393014,1745056152602,35034.0,0.00054794,120]
[358393015,1745056159839,500.0,0.00054794,120]
[358393016,1745056162060,500.0,0.00054794,120]
[358393017,1745056168828,500.0,0.00054794,120]
[358393018,1745056191413,500.0,0.00054794,120]
[358393019,1745056200573,150.8193912,0.00054794,120]
[358393020,1745056216611,500.0,0.00054794,120]
[358393021,1745056219437,500.0,0.00054794,120]
[358393022,1745056220483,10770.95,0.000494,60]
[358393023,1745056220764,10770.95,0.0005,60]
[358393024,1745056221075,10770.95,0.00053,60]
[358393025,1745056228039,500.0,0.00054794,120]
[358393026,1745056231911,-354.6011131,0.000197,2]
[358393027,1745056231920,-175.80608734,0.0001989,2]
[358393028,1745056231930,-300.0,0.00019899,2]
[358393029,1745056231940,-768.49279955,0.000199,2]
[358393030,1745056231951,-27451.29309651,0.000199,2]
[358393031,1745056232017,-473.5332,0.000199,2]
[358393102,1745056238127,-21296.02065072,0.000199,2]
[358393258,1745056240218,-1236.02502888,0.000199,2]
[358393276,1745056240382,-3170.95803773,0.000199,2]
[358393283,1745056240438,-974.55526154,0.000199,2]
[358393300,1745056240602,-8107.21067733,0.000199,2]
[358393335,1745056243027,-728.7613594,0.000199,2]
[358393340,1745056243082,-1503.50247,0.000199,2]
[358393341,1745056243094,-1319.01797298,0.000199,2]
[358393342,1745056243191,-50679.70266,0.000199,2]
[358393343,1745056244862,-165964.26780387,0.000199,2]
[358393344,1745056244875,-497.06061393,0.000199,2]
[358393345,1745056245532,500.0,0.00054794,120]
[358393382,1745056246142,-15465.36850399,0.000199,2]
[358393394,1745056246255,-500.0,0.000199,2]
[358393396,1745056246267,-1699.61792,0.000199,2]
[358393688,1745056249417,-702599.35826938,0.000199,2]
[358393703,1745056249549,-2084128.49584475,0.000199,2]
[358393705,1745056249560,-250.0,0.000199,2]
[358393707,1745056249570,-250.0,0.000199,2]
[358393709,1745056249579,-250.0,0.000199,2]
[358393710,1745056249589,-265.3,0.000199,2]
[358393712,1745056249599,-1000.0,0.000199,2]
[358393714,1745056249608,-776.75478189,0.000199,2]
[358393716,1745056249618,-250.0,0.000199,2]
[358393718,1745056249627,-250.0,0.000199,2]
[358393720,1745056249637,-250.0,0.000199,2]
[358393722,1745056249647,-250.0,0.000199,2]
[358393724,1745056249656,-250.0,0.000199,2]
[358393726,1745056249666,-250.0,0.000199,2]
[358393728,1745056249675,-250.2,0.000199,2]
[358393730,1745056249685,-156.40711135,0.000199,2]
[358393732,1745056249694,-150.0,0.000199,2]
[358393734,1745056249704,-567.98025702,0.000199,2]
[358393736,1745056249714,-150.0,0.000199,2]
[358393738,1745056249723,-768.95768234,0.000199,2]
[358393740,1745056249735,-37251.7908172,0.000199,2]
[358393742,1745056249744,-253.00287203,0.000199,2]
[358393744,1745056249755,-500.0,0.00019973,2]
[358393746,1745056249764,-500.0,0.00019973,2]
[358393748,1745056249774,-500.0,0.00019973,2]
[358393750,1745056249784,-506.92117102,0.00019973,2]
[358393752,1745056249794,-175.80608734,0.0001999,2]
[358393754,1745056249803,-477.07887751,0.0002,2]
[358393756,1745056249812,-221748.86835609,0.0002,2]
[358393758,1745056249822,-2453844.628464,0.0002,2]
[358393761,1745056249837,-3347.89821619,0.0002,2]
[358393762,1745056254090,500.0,0.00054794,120]
[358393763,1745056261151,871.19,0.00054794,120]
[358393764,1745056261745,500.0,0.00054794,120]
[358393765,1745056275582,500.0,0.00054794,120]
[358393766,1745056275805,318.93405889,0.00054794,120]
[358393767,1745056283162,500.0,0.00054794,120]
[358393768,1745056289537,936.0,0.000496,30]
[358393769,1745056291815,1404.24,0.00054794,120]
[358393770,1745056297398,500.0,0.00054794,120]
[358393771,1745056310811,500.0,0.00054794,120]
[358393772,1745056326452,151.0,0.00054795,30]
[358393773,1745056327052,158.69539488,0.00054795,30]
[358393774,1745056327578,500.0,0.00054794,120]
[358393775,1745056327849,500.0,0.00054794,120]
[358393776,1745056333227,500.0,0.00054794,120]
[358393777,1745056333264,585.4,0.00054794,120]
[358393778,1745056338683,153.40756544,0.00054794,120]
[358393779,1745056341056,980.65,0.00054794,120]
[358393780,1745056344887,1853.97,0.00046575,120]
[358393781,1745056345118,1853.97,0.00054794,120]
[358393782,1745056346402,500.0,0.00054794,120]
[358393783,1745056365872,52335.7939071,0.00054794,30]
[358393784,1745056370346,500.0,0.00054794,120]